[Event "Early-Titled-Tuesday-Blitz-April-23-2024"]
[Site "Chess.com"]
[Date "2024.04.23"]
[Round "1"]
[White "pasteta13"]
[Black "Storne89"]
[Result "0-1"]
[WhiteElo "2422"]
[BlackElo "2739"]
[TimeControl "180+1"]
[EndTime "8:06:55 PDT"]
[Termination "Storne89 won by resignation"]

1. e4 {[%clk 0:03:00.9]} 1... e5 {[%clk 0:02:59]} 2. Nf3 {[%clk 0:03:01.3]} 2...
Nc6 {[%clk 0:02:56.9]} 3. d4 {[%clk 0:03:01.9]} 3... exd4 {[%clk 0:02:56.6]} 4.
Bc4 {[%clk 0:03:02.5]} 4... Nf6 {[%clk 0:02:56.4]} 5. O-O {[%clk 0:03:03]} 5...
Nxe4 {[%clk 0:02:56.3]} 6. Re1 {[%clk 0:03:03.6]} 6... d5 {[%clk 0:02:56.9]} 7.
Bxd5 {[%clk 0:03:04.2]} 7... Qxd5 {[%clk 0:02:57.6]} 8. Nc3 {[%clk 0:03:04.7]}
8... Qh5 {[%clk 0:02:50.3]} 9. Nxe4 {[%clk 0:03:04.5]} 9... Be6 {[%clk
0:02:49.2]} 10. Nxd4 {[%clk 0:03:03]} 10... Qxd1 {[%clk 0:02:45.8]} 11. Rxd1
{[%clk 0:03:03.1]} 11... O-O-O {[%clk 0:02:18]} 12. Be3 {[%clk 0:03:02.7]} 12...
Nxd4 {[%clk 0:02:17.7]} 13. Rxd4 {[%clk 0:02:55.5]} 13... Rxd4 {[%clk
0:02:16.2]} 14. Bxd4 {[%clk 0:02:55.4]} 14... f6 {[%clk 0:02:13.1]} 15. Re1
{[%clk 0:02:40.1]} 15... Bf7 {[%clk 0:02:08.7]} 16. Bc5 {[%clk 0:02:35.3]} 16...
b6 {[%clk 0:02:05.5]} 17. Bxf8 {[%clk 0:02:34.5]} 17... Rxf8 {[%clk 0:02:06.4]}
18. Ng3 {[%clk 0:02:10.6]} 18... Rd8 {[%clk 0:02:04.9]} 19. Nf1 {[%clk 0:01:49]}
19... Rd7 {[%clk 0:01:52.6]} 20. f3 {[%clk 0:01:37.1]} 20... a5 {[%clk
0:01:46.6]} 21. a3 {[%clk 0:01:34.4]} 21... Bg6 {[%clk 0:01:43.4]} 22. c3 {[%clk
0:01:14.1]} 22... Kb7 {[%clk 0:01:42.3]} 23. Kf2 {[%clk 0:01:14.2]} 23... Kc6
{[%clk 0:01:42.3]} 24. Re2 {[%clk 0:00:49.4]} 24... Bd3 {[%clk 0:01:20.7]} 25.
Re6+ {[%clk 0:00:49.3]} 25... Kb5 {[%clk 0:01:18.8]} 26. Ne3 {[%clk 0:00:48.9]}
26... Ka4 {[%clk 0:01:14.2]} 27. c4 {[%clk 0:00:16.7]} 27... Kb3 {[%clk
0:01:08.8]} 28. c5 {[%clk 0:00:17.1]} 28... bxc5 {[%clk 0:01:05.7]} 29. Rc6
{[%clk 0:00:09.8]} 29... c4 {[%clk 0:01:00.8]} 30. Rc5 {[%clk 0:00:06.3]} 30...
Kxb2 {[%clk 0:00:44]} 31. a4 {[%clk 0:00:06.8]} 31... Kb3 {[%clk 0:00:39.3]} 32.
Rxa5 {[%clk 0:00:06.1]} 32... c3 {[%clk 0:00:39.9]} 33. Rc5 {[%clk 0:00:05.7]}
33... c2 {[%clk 0:00:40.2]} 34. a5 {[%clk 0:00:05.9]} 34... Kb2 {[%clk
0:00:36.8]} 35. a6 {[%clk 0:00:06.2]} 35... c1=Q {[%clk 0:00:35.1]} 36. Rxc1
{[%clk 0:00:05.6]} 36... Kxc1 {[%clk 0:00:35]} 37. a7 {[%clk 0:00:06.3]} 37...
Rd8 {[%clk 0:00:35.7]} 0-1

[Event "Early-Titled-Tuesday-Blitz-April-23-2024"]
[Site "Chess.com"]
[Date "2024.04.23"]
[Round "1"]
[White "arnash_bauyrzhan"]
[Black "tetrix83"]
[Result "0-1"]
[WhiteElo "2309"]
[BlackElo "2636"]
[TimeControl "180+1"]
[EndTime "8:06:55 PDT"]
[Termination "tetrix83 won on time"]

1. e4 {[%clk 0:02:48.5]} 1... c5 {[%clk 0:02:59.5]} 2. Nf3 {[%clk 0:02:47.7]}
2... e6 {[%clk 0:02:58.1]} 3. d4 {[%clk 0:02:47.2]} 3... cxd4 {[%clk 0:02:58.4]}
4. Nxd4 {[%clk 0:02:47.4]} 4... a6 {[%clk 0:02:58.9]} 5. Bd3 {[%clk 0:02:46.7]}
5... Qc7 {[%clk 0:02:59]} 6. O-O {[%clk 0:02:46.4]} 6... Nf6 {[%clk 0:02:59.2]}
7. Qe2 {[%clk 0:02:45.7]} 7... d6 {[%clk 0:02:59.4]} 8. c4 {[%clk 0:02:45.5]}
8... Nbd7 {[%clk 0:02:58.7]} 9. Nc3 {[%clk 0:02:45.5]} 9... Ne5 {[%clk
0:02:58.2]} 10. f4 {[%clk 0:02:36.7]} 10... Nxd3 {[%clk 0:02:58.1]} 11. Qxd3
{[%clk 0:02:36.9]} 11... Be7 {[%clk 0:02:59]} 12. Bd2 {[%clk 0:02:34.5]} 12...
O-O {[%clk 0:02:49.3]} 13. Rae1 {[%clk 0:02:33.7]} 13... Nd7 {[%clk 0:02:49.6]}
14. b3 {[%clk 0:02:29.5]} 14... b6 {[%clk 0:02:47.9]} 15. f5 {[%clk 0:02:25.2]}
15... Ne5 {[%clk 0:02:45]} 16. Qg3 {[%clk 0:02:17.9]} 16... Bf6 {[%clk
0:02:40.5]} 17. Bg5 {[%clk 0:01:59.1]} 17... Bxg5 {[%clk 0:02:35.5]} 18. Qxg5
{[%clk 0:01:58.8]} 18... Qc5 {[%clk 0:02:29.2]} 19. Rd1 {[%clk 0:01:36.1]} 19...
b5 {[%clk 0:02:20.4]} 20. Kh1 {[%clk 0:01:07.6]} 20... f6 {[%clk 0:02:17.6]} 21.
Qg3 {[%clk 0:01:02.8]} 21... exf5 {[%clk 0:02:17.2]} 22. Nd5 {[%clk 0:00:43.3]}
22... Ra7 {[%clk 0:02:06.5]} 23. Nxf5 {[%clk 0:00:36.7]} 23... Bxf5 {[%clk
0:02:02.8]} 24. Rxf5 {[%clk 0:00:36.8]} 24... Kh8 {[%clk 0:01:59.5]} 25. cxb5
{[%clk 0:00:33.6]} 25... axb5 {[%clk 0:01:57.4]} 26. Nf4 {[%clk 0:00:15.1]}
26... Qc2 {[%clk 0:01:42.7]} 27. Rf1 {[%clk 0:00:11.9]} 27... Qxe4 {[%clk
0:01:42.7]} 28. Ne6 {[%clk 0:00:11.4]} 28... Re8 {[%clk 0:01:31.8]} 29. Ng5
{[%clk 0:00:09.6]} 29... Qd3 {[%clk 0:01:09.3]} 30. Qh4 {[%clk 0:00:07.9]} 30...
h6 {[%clk 0:00:59.9]} 31. Ne4 {[%clk 0:00:05.1]} 31... Rf7 {[%clk 0:00:35.1]}
0-1

[Event "Early-Titled-Tuesday-Blitz-April-23-2024"]
[Site "Chess.com"]
[Date "2024.04.23"]
[Round "1"]
[White "Mikhail_Golubev"]
[Black "GambitGiesbergen"]
[Result "0-1"]
[WhiteElo "2606"]
[BlackElo "2309"]
[TimeControl "180+1"]
[EndTime "8:06:57 PDT"]
[Termination "GambitGiesbergen won on time"]

1. e4 {[%clk 0:02:58.9]} 1... c5 {[%clk 0:02:59.4]} 2. Nf3 {[%clk 0:02:57]} 2...
f5 {[%clk 0:02:59.9]} 3. exf5 {[%clk 0:02:53.7]} 3... Nc6 {[%clk 0:03:00.1]} 4.
Nc3 {[%clk 0:02:46.3]} 4... d5 {[%clk 0:03:00.2]} 5. d4 {[%clk 0:02:44.8]} 5...
Bxf5 {[%clk 0:03:00]} 6. Bb5 {[%clk 0:02:39.1]} 6... e6 {[%clk 0:02:59.6]} 7.
O-O {[%clk 0:02:32.9]} 7... Bd6 {[%clk 0:02:52.1]} 8. dxc5 {[%clk 0:02:18.2]}
8... Bxc5 {[%clk 0:02:53]} 9. Nd4 {[%clk 0:02:03.7]} 9... Ne7 {[%clk 0:02:33.4]}
10. Bg5 {[%clk 0:01:43.6]} 10... O-O {[%clk 0:02:27.1]} 11. Bxc6 {[%clk
0:01:31]} 11... Bxd4 {[%clk 0:01:37]} 12. Qxd4 {[%clk 0:01:31.9]} 12... Nxc6
{[%clk 0:01:34]} 13. Qd2 {[%clk 0:01:21.8]} 13... Qb6 {[%clk 0:01:31.9]} 14. Na4
{[%clk 0:01:18.9]} 14... Qb5 {[%clk 0:01:30.3]} 15. b3 {[%clk 0:01:18.4]} 15...
Ne5 {[%clk 0:01:23.2]} 16. Rae1 {[%clk 0:01:07]} 16... Ng4 {[%clk 0:01:21.3]}
17. Bf4 {[%clk 0:00:50.7]} 17... Rac8 {[%clk 0:01:19.1]} 18. c3 {[%clk
0:00:50.8]} 18... Be4 {[%clk 0:01:12.7]} 19. f3 {[%clk 0:00:43]} 19... Bd3
{[%clk 0:01:08.6]} 20. fxg4 {[%clk 0:00:32.9]} 20... Bxf1 {[%clk 0:01:08.8]} 21.
Be5 {[%clk 0:00:28.4]} 21... Bd3 {[%clk 0:01:00.2]} 22. h4 {[%clk 0:00:24.7]}
22... Be4 {[%clk 0:00:55.3]} 23. Nb2 {[%clk 0:00:17.1]} 23... Rf7 {[%clk
0:00:53.8]} 24. Nd1 {[%clk 0:00:16.3]} 24... Rcf8 {[%clk 0:00:53]} 25. Ne3
{[%clk 0:00:16.2]} 25... Qb6 {[%clk 0:00:45.1]} 26. Bd4 {[%clk 0:00:12.3]} 26...
Qd6 {[%clk 0:00:45.5]} 27. Rf1 {[%clk 0:00:08.2]} 27... Rxf1+ {[%clk 0:00:39.1]}
28. Nxf1 {[%clk 0:00:09.1]} 28... Qf4 {[%clk 0:00:39.1]} 29. Qxf4 {[%clk
0:00:05.7]} 29... Rxf4 {[%clk 0:00:40]} 30. Ne3 {[%clk 0:00:06]} 30... Bb1
{[%clk 0:00:34.3]} 31. Bxa7 {[%clk 0:00:04.9]} 31... Bxa2 {[%clk 0:00:34.1]} 32.
b4 {[%clk 0:00:04.9]} 32... b5 {[%clk 0:00:31.8]} 33. g3 {[%clk 0:00:03.6]}
33... Re4 {[%clk 0:00:31.7]} 34. Kf2 {[%clk 0:00:03.8]} 34... Bc4 {[%clk
0:00:30.5]} 35. Nf5 {[%clk 0:00:02.6]} 35... exf5 {[%clk 0:00:30.1]} 0-1

[Event "Early-Titled-Tuesday-Blitz-April-23-2024"]
[Site "Chess.com"]
[Date "2024.04.23"]
[Round "1"]
[White "Kiborg95"]
[Black "SaiAgni_98"]
[Result "1-0"]
[WhiteElo "2843"]
[BlackElo "2480"]
[TimeControl "180+1"]
[EndTime "8:07:00 PDT"]
[Termination "Kiborg95 won by checkmate"]

1. e4 {[%clk 0:02:55.7]} 1... c6 {[%clk 0:03:00]} 2. d4 {[%clk 0:02:54.7]} 2...
d5 {[%clk 0:03:00.2]} 3. e5 {[%clk 0:02:55.5]} 3... Bf5 {[%clk 0:03:00]} 4. h4
{[%clk 0:02:56.1]} 4... h5 {[%clk 0:03:00]} 5. c4 {[%clk 0:02:55.7]} 5... e6
{[%clk 0:02:59.1]} 6. Nc3 {[%clk 0:02:56.4]} 6... Bb4 {[%clk 0:02:56.9]} 7. cxd5
{[%clk 0:02:52.1]} 7... Qxd5 {[%clk 0:02:52]} 8. Ne2 {[%clk 0:02:37.1]} 8... Ne7
{[%clk 0:02:15.7]} 9. a3 {[%clk 0:02:31]} 9... Bxc3+ {[%clk 0:02:13.9]} 10. Nxc3
{[%clk 0:02:31.9]} 10... Qa5 {[%clk 0:02:03.3]} 11. Be2 {[%clk 0:02:26.2]} 11...
Nd5 {[%clk 0:02:00.7]} 12. Bd2 {[%clk 0:02:01.5]} 12... Qb6 {[%clk 0:01:59.9]}
13. Nxd5 {[%clk 0:01:50.4]} 13... cxd5 {[%clk 0:01:50.3]} 14. Bb4 {[%clk
0:01:34.6]} 14... Nc6 {[%clk 0:01:48.3]} 15. Bc5 {[%clk 0:01:35.2]} 15... Qxb2
{[%clk 0:01:43.7]} 16. O-O {[%clk 0:01:35.4]} 16... Qc2 {[%clk 0:01:08.8]} 17.
Qe1 {[%clk 0:01:16.5]} 17... Bd3 {[%clk 0:01:06.2]} 18. Bxd3 {[%clk 0:01:02.8]}
18... Qxd3 {[%clk 0:01:07.1]} 19. Rd1 {[%clk 0:01:03.3]} 19... Qf5 {[%clk
0:00:53]} 20. Qe2 {[%clk 0:00:56.6]} 20... a6 {[%clk 0:00:37.6]} 21. Rb1 {[%clk
0:00:52.3]} 21... O-O-O {[%clk 0:00:17.6]} 22. Rfc1 {[%clk 0:00:43.8]} 22... Rd7
{[%clk 0:00:17.7]} 23. Rb6 {[%clk 0:00:41.1]} 23... g5 {[%clk 0:00:15.5]} 24.
Bd6 {[%clk 0:00:35.4]} 24... Kd8 {[%clk 0:00:10]} 25. Rcxc6 {[%clk 0:00:32.2]}
25... gxh4 {[%clk 0:00:05.8]} 26. Rxa6 {[%clk 0:00:18.2]} 26... Ke8 {[%clk
0:00:02.6]} 27. Rc8+ {[%clk 0:00:16.7]} 27... Rd8 {[%clk 0:00:03]} 28. Qb5#
{[%clk 0:00:17.5]} 1-0

[Event "Early-Titled-Tuesday-Blitz-April-23-2024"]
[Site "Chess.com"]
[Date "2024.04.23"]
[Round "1"]
[White "esrosenberg"]
[Black "SashaKuzhilniy"]
[Result "0-1"]
[WhiteElo "2329"]
[BlackElo "2645"]
[TimeControl "180+1"]
[EndTime "8:07:00 PDT"]
[Termination "SashaKuzhilniy won on time"]

1. e4 {[%clk 0:02:57.9]} 1... e5 {[%clk 0:02:57.8]} 2. Nf3 {[%clk 0:02:54.6]}
2... Nc6 {[%clk 0:02:57]} 3. Nc3 {[%clk 0:02:55.2]} 3... Nf6 {[%clk 0:02:53.6]}
4. d4 {[%clk 0:02:55.1]} 4... exd4 {[%clk 0:02:54.5]} 5. Nxd4 {[%clk 0:02:53.4]}
5... Bb4 {[%clk 0:02:54.9]} 6. Nxc6 {[%clk 0:02:53.3]} 6... bxc6 {[%clk
0:02:55.8]} 7. Bd3 {[%clk 0:02:52.6]} 7... O-O {[%clk 0:02:55.3]} 8. O-O {[%clk
0:02:51.3]} 8... Re8 {[%clk 0:02:55.8]} 9. Bg5 {[%clk 0:02:46.6]} 9... h6 {[%clk
0:02:53.8]} 10. Bh4 {[%clk 0:02:18.7]} 10... d5 {[%clk 0:02:52.3]} 11. exd5
{[%clk 0:02:16.8]} 11... g5 {[%clk 0:02:52.5]} 12. Bg3 {[%clk 0:02:10.7]} 12...
cxd5 {[%clk 0:02:52.9]} 13. h3 {[%clk 0:01:51]} 13... c5 {[%clk 0:02:17.9]} 14.
Qf3 {[%clk 0:01:41.2]} 14... Be6 {[%clk 0:02:04.5]} 15. Nb5 {[%clk 0:01:23]}
15... c4 {[%clk 0:01:35]} 16. Bf5 {[%clk 0:01:19.6]} 16... Rc8 {[%clk
0:01:12.7]} 17. Nxa7 {[%clk 0:01:05.9]} 17... Ra8 {[%clk 0:01:05.5]} 18. Nc6
{[%clk 0:01:00.9]} 18... Qb6 {[%clk 0:01:03.4]} 19. Nxb4 {[%clk 0:00:58.6]}
19... Qxb4 {[%clk 0:01:04.3]} 20. Rae1 {[%clk 0:00:32]} 20... Bxf5 {[%clk
0:00:36.7]} 21. Rxe8+ {[%clk 0:00:30.6]} 21... Rxe8 {[%clk 0:00:37.6]} 22. Qxf5
{[%clk 0:00:30.1]} 22... Re6 {[%clk 0:00:38.3]} 23. Be5 {[%clk 0:00:23]} 23...
Ne4 {[%clk 0:00:31.6]} 24. Bc3 {[%clk 0:00:19.4]} 24... Nxc3 {[%clk 0:00:30.4]}
25. bxc3 {[%clk 0:00:20.3]} 25... Qxc3 {[%clk 0:00:27.9]} 26. Qxd5 {[%clk
0:00:20.3]} 26... Qxc2 {[%clk 0:00:28.5]} 27. a4 {[%clk 0:00:18.3]} 27... Qxa4
{[%clk 0:00:27.9]} 28. f4 {[%clk 0:00:14.4]} 28... Qc6 {[%clk 0:00:27.7]} 29.
Qd8+ {[%clk 0:00:12]} 29... Re8 {[%clk 0:00:27.3]} 30. Qd4 {[%clk 0:00:11.9]}
30... Re2 {[%clk 0:00:22.3]} 31. Qd8+ {[%clk 0:00:08.7]} 31... Kh7 {[%clk
0:00:19.8]} 32. Rf2 {[%clk 0:00:06.6]} 32... Qc5 {[%clk 0:00:18.2]} 0-1

[Event "Early-Titled-Tuesday-Blitz-April-23-2024"]
[Site "Chess.com"]
[Date "2024.04.23"]
[Round "1"]
[White "alpope"]
[Black "Binary010"]
[Result "1-0"]
[WhiteElo "2512"]
[BlackElo "2859"]
[TimeControl "180+1"]
[EndTime "8:07:01 PDT"]
[Termination "alpope won by resignation"]

1. e4 {[%clk 0:02:59.8]} 1... c5 {[%clk 0:02:59.9]} 2. Ne2 {[%clk 0:02:59.4]}
2... d6 {[%clk 0:02:54.8]} 3. g3 {[%clk 0:02:58.5]} 3... g6 {[%clk 0:02:54.2]}
4. c3 {[%clk 0:02:54]} 4... Nf6 {[%clk 0:02:52]} 5. Bg2 {[%clk 0:02:53.6]} 5...
e5 {[%clk 0:02:48.6]} 6. O-O {[%clk 0:02:51.1]} 6... Bg7 {[%clk 0:02:48.9]} 7.
d4 {[%clk 0:02:51.3]} 7... O-O {[%clk 0:02:48.5]} 8. h3 {[%clk 0:02:37.6]} 8...
exd4 {[%clk 0:02:40.6]} 9. cxd4 {[%clk 0:02:37]} 9... Re8 {[%clk 0:02:40.4]} 10.
Nbc3 {[%clk 0:02:35.2]} 10... Nc6 {[%clk 0:02:37.3]} 11. Be3 {[%clk 0:02:28.3]}
11... cxd4 {[%clk 0:02:33.8]} 12. Nxd4 {[%clk 0:02:29.2]} 12... Ne5 {[%clk
0:02:34.2]} 13. b3 {[%clk 0:02:25]} 13... Bd7 {[%clk 0:02:30.2]} 14. Qd2 {[%clk
0:02:15]} 14... Rc8 {[%clk 0:02:26.6]} 15. Rac1 {[%clk 0:02:14.9]} 15... Qa5
{[%clk 0:02:19.3]} 16. Rfd1 {[%clk 0:02:06.4]} 16... a6 {[%clk 0:02:07.7]} 17.
Nde2 {[%clk 0:01:47.6]} 17... Bxh3 {[%clk 0:02:04.8]} 18. Qxd6 {[%clk
0:01:34.2]} 18... Bxg2 {[%clk 0:02:02.9]} 19. Kxg2 {[%clk 0:01:33.8]} 19... Nc6
{[%clk 0:01:39.4]} 20. f3 {[%clk 0:01:18.2]} 20... Red8 {[%clk 0:00:59.8]} 21.
Qc5 {[%clk 0:01:18.4]} 21... Qxc5 {[%clk 0:00:38.3]} 22. Bxc5 {[%clk 0:01:19.3]}
22... Ne5 {[%clk 0:00:38.9]} 23. Bb6 {[%clk 0:01:10.1]} 23... Rd3 {[%clk
0:00:36.2]} 24. Rxd3 {[%clk 0:01:04.3]} 24... Nxd3 {[%clk 0:00:36.1]} 25. Rd1
{[%clk 0:01:04.8]} 25... Nb4 {[%clk 0:00:30.1]} 26. Bd4 {[%clk 0:00:41.4]} 26...
Nc6 {[%clk 0:00:23.4]} 27. Bxf6 {[%clk 0:00:41.3]} 27... Bxf6 {[%clk 0:00:24.3]}
28. Nd5 {[%clk 0:00:41.8]} 28... Bg7 {[%clk 0:00:22.3]} 29. Rc1 {[%clk
0:00:41.3]} 29... Kf8 {[%clk 0:00:21.6]} 30. Nef4 {[%clk 0:00:36.4]} 30... h5
{[%clk 0:00:21.4]} 31. Nd3 {[%clk 0:00:34.8]} 31... Rd8 {[%clk 0:00:20.7]} 32.
Nc5 {[%clk 0:00:34.4]} 32... Ne5 {[%clk 0:00:08.7]} 33. Nxb7 {[%clk 0:00:33.6]}
33... Rb8 {[%clk 0:00:08.9]} 34. Nc5 {[%clk 0:00:32.9]} 34... Rc8 {[%clk
0:00:08.2]} 35. Nd7+ {[%clk 0:00:31.2]} 35... Ke8 {[%clk 0:00:06.7]} 36. Rxc8+
{[%clk 0:00:29.9]} 36... Kxd7 {[%clk 0:00:07.3]} 37. Rc7+ {[%clk 0:00:28.6]}
37... Ke8 {[%clk 0:00:06]} 38. Re7+ {[%clk 0:00:28.8]} 38... Kf8 {[%clk
0:00:06.4]} 39. Ra7 {[%clk 0:00:28.8]} 1-0

[Event "Early-Titled-Tuesday-Blitz-April-23-2024"]
[Site "Chess.com"]
[Date "2024.04.23"]
[Round "1"]
[White "mokerslag"]
[Black "GMKrikor"]
[Result "0-1"]
[WhiteElo "2502"]
[BlackElo "2883"]
[TimeControl "180+1"]
[EndTime "8:07:02 PDT"]
[Termination "GMKrikor won on time"]

1. e4 {[%clk 0:03:00.6]} 1... c5 {[%clk 0:02:47.2]} 2. Nf3 {[%clk 0:02:59.9]}
2... Nc6 {[%clk 0:02:42.9]} 3. d4 {[%clk 0:03:00.1]} 3... cxd4 {[%clk
0:02:38.7]} 4. Nxd4 {[%clk 0:03:01]} 4... Nf6 {[%clk 0:02:37.1]} 5. Nc3 {[%clk
0:03:00.8]} 5... e5 {[%clk 0:02:32.2]} 6. Ndb5 {[%clk 0:03:00.1]} 6... d6 {[%clk
0:02:31.4]} 7. Bg5 {[%clk 0:03:00.2]} 7... a6 {[%clk 0:02:31]} 8. Na3 {[%clk
0:03:00.2]} 8... b5 {[%clk 0:02:31.2]} 9. Nd5 {[%clk 0:02:59.4]} 9... Be7 {[%clk
0:02:30.8]} 10. Bxf6 {[%clk 0:02:58.9]} 10... Bxf6 {[%clk 0:02:30.3]} 11. c4
{[%clk 0:02:59.6]} 11... b4 {[%clk 0:02:30.4]} 12. Nc2 {[%clk 0:03:00]} 12...
O-O {[%clk 0:02:30.3]} 13. g3 {[%clk 0:02:58.4]} 13... a5 {[%clk 0:02:28]} 14.
Bg2 {[%clk 0:02:58]} 14... Bg5 {[%clk 0:02:18.3]} 15. O-O {[%clk 0:02:57.5]}
15... Be6 {[%clk 0:02:16.6]} 16. b3 {[%clk 0:02:55.2]} 16... Ne7 {[%clk
0:02:06.5]} 17. f4 {[%clk 0:02:44.4]} 17... Bh6 {[%clk 0:02:00.9]} 18. Nxe7+
{[%clk 0:02:14.5]} 18... Qxe7 {[%clk 0:01:59.6]} 19. Qd3 {[%clk 0:02:15.4]}
19... Qa7+ {[%clk 0:01:41.6]} 20. Kh1 {[%clk 0:02:14.8]} 20... Qc5 {[%clk
0:01:41.7]} 21. Rad1 {[%clk 0:02:03.5]} 21... Rfd8 {[%clk 0:01:32.8]} 22. fxe5
{[%clk 0:01:57.1]} 22... Qxe5 {[%clk 0:01:27.5]} 23. Nd4 {[%clk 0:01:57.2]}
23... Rac8 {[%clk 0:01:22.9]} 24. Nf5 {[%clk 0:01:50.3]} 24... Bg5 {[%clk
0:01:17.7]} 25. Nd4 {[%clk 0:00:55.8]} 25... Bf6 {[%clk 0:01:17.4]} 26. Nf5
{[%clk 0:00:50.7]} 26... g6 {[%clk 0:01:12.8]} 27. Ne3 {[%clk 0:00:44.7]} 27...
Kg7 {[%clk 0:01:07.1]} 28. Nd5 {[%clk 0:00:41.7]} 28... Bg5 {[%clk 0:01:07.1]}
29. Nf4 {[%clk 0:00:36]} 29... h5 {[%clk 0:01:02.1]} 30. Nxe6+ {[%clk
0:00:34.6]} 30... fxe6 {[%clk 0:00:59.3]} 31. Rf2 {[%clk 0:00:34.7]} 31... h4
{[%clk 0:00:53.7]} 32. Rdf1 {[%clk 0:00:30.4]} 32... Rf8 {[%clk 0:00:45.9]} 33.
Rxf8 {[%clk 0:00:28.9]} 33... Rxf8 {[%clk 0:00:46.8]} 34. Rxf8 {[%clk
0:00:29.2]} 34... Kxf8 {[%clk 0:00:47.7]} 35. gxh4 {[%clk 0:00:25.8]} 35... Bxh4
{[%clk 0:00:43.2]} 36. Qh3 {[%clk 0:00:20]} 36... Bg5 {[%clk 0:00:36.2]} 0-1

[Event "Early-Titled-Tuesday-Blitz-April-23-2024"]
[Site "Chess.com"]
[Date "2024.04.23"]
[Round "1"]
[White "sokidze"]
[Black "Juicy_Fork"]
[Result "1-0"]
[WhiteElo "2825"]
[BlackElo "2473"]
[TimeControl "180+1"]
[EndTime "8:07:02 PDT"]
[Termination "sokidze won by resignation"]

1. d4 {[%clk 0:03:00.9]} 1... Nf6 {[%clk 0:02:58.2]} 2. c4 {[%clk 0:03:00.5]}
2... g6 {[%clk 0:02:58]} 3. Nc3 {[%clk 0:02:59.8]} 3... Bg7 {[%clk 0:02:58.5]}
4. e4 {[%clk 0:02:59.7]} 4... d6 {[%clk 0:02:59]} 5. h3 {[%clk 0:02:59.8]} 5...
O-O {[%clk 0:02:59.1]} 6. Be3 {[%clk 0:02:59.7]} 6... e5 {[%clk 0:02:59.4]} 7.
d5 {[%clk 0:02:59.8]} 7... Na6 {[%clk 0:02:59.1]} 8. g4 {[%clk 0:02:59.7]} 8...
Nc5 {[%clk 0:02:59.8]} 9. f3 {[%clk 0:02:59.8]} 9... a5 {[%clk 0:02:59.1]} 10.
Qd2 {[%clk 0:02:51.3]} 10... c6 {[%clk 0:02:58.8]} 11. Nge2 {[%clk 0:02:51.4]}
11... cxd5 {[%clk 0:02:58.6]} 12. cxd5 {[%clk 0:02:51.7]} 12... a4 {[%clk
0:02:58.5]} 13. Ng3 {[%clk 0:02:50.1]} 13... Qa5 {[%clk 0:02:57.3]} 14. Nb5
{[%clk 0:02:28.7]} 14... Qd8 {[%clk 0:02:38.2]} 15. h4 {[%clk 0:02:17.1]} 15...
b6 {[%clk 0:02:33.1]} 16. h5 {[%clk 0:02:11.8]} 16... Ba6 {[%clk 0:02:31.9]} 17.
hxg6 {[%clk 0:01:58.4]} 17... fxg6 {[%clk 0:02:32.8]} 18. Qh2 {[%clk 0:01:54]}
18... Qd7 {[%clk 0:02:25.2]} 19. g5 {[%clk 0:00:57.6]} 19... Bxb5 {[%clk
0:02:06.7]} 20. gxf6 {[%clk 0:00:56.8]} 20... Rxf6 {[%clk 0:02:01.9]} 21. Qxh7+
{[%clk 0:00:55]} 21... Kf7 {[%clk 0:01:56.2]} 22. Bh6 {[%clk 0:00:27.9]} 22...
Rg8 {[%clk 0:01:52.4]} 23. Bh3 {[%clk 0:00:27.4]} 23... Qc7 {[%clk 0:01:39.5]}
24. Rc1 {[%clk 0:00:04.7]} 24... Bd7 {[%clk 0:00:27.2]} 25. Rc3 {[%clk
0:00:05.1]} 25... Bxh3 {[%clk 0:00:26.7]} 26. Rxh3 {[%clk 0:00:06]} 26... Qd7
{[%clk 0:00:27.2]} 27. Rh2 {[%clk 0:00:06.5]} 27... Qb5 {[%clk 0:00:27.4]} 28.
Rd2 {[%clk 0:00:02.8]} 28... Rxf3 {[%clk 0:00:27.2]} 29. Rxf3+ {[%clk
0:00:02.6]} 29... Ke7 {[%clk 0:00:21.3]} 30. Bg5+ {[%clk 0:00:01.7]} 30... Kd7
{[%clk 0:00:21]} 31. Rf7+ {[%clk 0:00:02.2]} 31... Ke8 {[%clk 0:00:19.2]} 32.
Qxg8+ {[%clk 0:00:02.9]} 1-0

[Event "Early-Titled-Tuesday-Blitz-April-23-2024"]
[Site "Chess.com"]
[Date "2024.04.23"]
[Round "1"]
[White "ellatambien"]
[Black "Real_taiatai"]
[Result "1-0"]
[WhiteElo "2719"]
[BlackElo "2402"]
[TimeControl "180+1"]
[EndTime "8:07:04 PDT"]
[Termination "ellatambien won by checkmate"]

1. d4 {[%clk 0:02:59.3]} 1... Nf6 {[%clk 0:02:49]} 2. c4 {[%clk 0:02:58.7]} 2...
e6 {[%clk 0:02:49.5]} 3. g3 {[%clk 0:02:57.9]} 3... d5 {[%clk 0:02:49]} 4. Bg2
{[%clk 0:02:56.7]} 4... Be7 {[%clk 0:02:47.4]} 5. Nf3 {[%clk 0:02:55]} 5... O-O
{[%clk 0:02:48]} 6. O-O {[%clk 0:02:55.2]} 6... dxc4 {[%clk 0:02:47.7]} 7. Na3
{[%clk 0:02:55.2]} 7... Bxa3 {[%clk 0:02:43.4]} 8. bxa3 {[%clk 0:02:54.1]} 8...
Bd7 {[%clk 0:02:34.3]} 9. a4 {[%clk 0:02:50.5]} 9... Bc6 {[%clk 0:02:33.5]} 10.
Ba3 {[%clk 0:02:49]} 10... Re8 {[%clk 0:02:32.8]} 11. Qc2 {[%clk 0:02:47.7]}
11... Bd5 {[%clk 0:02:31.3]} 12. Rfe1 {[%clk 0:02:38.3]} 12... Ne4 {[%clk
0:02:15.6]} 13. Ne5 {[%clk 0:02:34.1]} 13... Nd6 {[%clk 0:01:56.9]} 14. e4
{[%clk 0:02:28.5]} 14... Bc6 {[%clk 0:01:56.6]} 15. Rab1 {[%clk 0:02:06.7]}
15... Nd7 {[%clk 0:01:44.9]} 16. Nxc6 {[%clk 0:01:59.7]} 16... bxc6 {[%clk
0:01:44.8]} 17. e5 {[%clk 0:02:00.4]} 17... Nf5 {[%clk 0:01:43.5]} 18. Rbd1
{[%clk 0:01:50.4]} 18... Nb6 {[%clk 0:01:42]} 19. Bxc6 {[%clk 0:01:41.4]} 19...
Nxd4 {[%clk 0:01:27.8]} 20. Qe4 {[%clk 0:01:35.9]} 20... Nxc6 {[%clk 0:01:18.1]}
21. Rxd8 {[%clk 0:01:35.8]} 21... Nxd8 {[%clk 0:01:19]} 22. a5 {[%clk
0:01:36.1]} 22... Nd5 {[%clk 0:01:19.5]} 23. Qxc4 {[%clk 0:01:35.7]} 23... Nb7
{[%clk 0:01:16.9]} 24. Rb1 {[%clk 0:01:20.4]} 24... Nxa5 {[%clk 0:00:20.9]} 25.
Qc5 {[%clk 0:01:15.8]} 25... Rab8 {[%clk 0:00:21.2]} 26. Rxb8 {[%clk 0:01:13]}
26... Rxb8 {[%clk 0:00:22.1]} 27. Qxa5 {[%clk 0:01:12.9]} 27... h5 {[%clk
0:00:22.4]} 28. Qxa7 {[%clk 0:01:11.2]} 28... Rb1+ {[%clk 0:00:23]} 29. Kg2
{[%clk 0:01:10.8]} 29... Kh7 {[%clk 0:00:23.3]} 30. Qd4 {[%clk 0:01:07.1]} 30...
g6 {[%clk 0:00:20.9]} 31. Bb2 {[%clk 0:01:01.5]} 31... Re1 {[%clk 0:00:17.7]}
32. a4 {[%clk 0:01:00.6]} 32... Re2 {[%clk 0:00:16.5]} 33. a5 {[%clk 0:00:54.8]}
33... c5 {[%clk 0:00:17.1]} 34. Qa4 {[%clk 0:00:46.2]} 34... Rxb2 {[%clk
0:00:17.2]} 35. a6 {[%clk 0:00:46.6]} 35... Ne3+ {[%clk 0:00:17.1]} 36. Kf3
{[%clk 0:00:43.5]} 36... Ng4 {[%clk 0:00:17.6]} 37. a7 {[%clk 0:00:34.1]} 37...
Nxe5+ {[%clk 0:00:14.1]} 38. Kg2 {[%clk 0:00:32.6]} 38... Ng4 {[%clk 0:00:09.3]}
39. a8=Q {[%clk 0:00:32]} 39... Rxf2+ {[%clk 0:00:09.9]} 40. Kg1 {[%clk
0:00:32.3]} 40... Rf5 {[%clk 0:00:09.9]} 41. Q4e8 {[%clk 0:00:28.8]} 41... Kh6
{[%clk 0:00:09.4]} 42. Qh8+ {[%clk 0:00:27.9]} 42... Kg5 {[%clk 0:00:10.1]} 43.
h4# {[%clk 0:00:27.8]} 1-0